{"text_format":"3","workbook":"xlsx","n_sheets":4,"sheets":["Inicio","Gastos","Ingresos","Resumen de pérdidas y ganancias"],"not_rendered":{"charts":1},"read":"whole","date_system":"1900"}

{"sheet":"Inicio","index":0,"n_rows":8,"n_cols":2,"rows_kept":8}
[null,"INFORMACIÓN SOBRE ESTA PLANTILLA"]
[null,"Usa este libro de presupuesto del evento para realizar un seguimiento de los gastos e ingresos obtenidos de un evento."]
[null,"Rellena el nombre del evento y escribe la información en las tablas en las hojas de cálculo Gastos e Ingresos."]
[null,"El gastos Totales y el ingresos Totales se calculan automáticamente."]
[null,"El resumen de beneficios y pérdidas y el gráfico se actualizan automáticamente en la hoja de cálculo Resumen de beneficias y pérdidas."]
[null,"Nota: "]
[null,"Se facilitan instrucciones adicionales en la columna A de cada hoja de cálculo. Este texto se ocultó a propósito. Para eliminar el texto, selecciona la columna A y, a continuación, ELIMINAR. Para mostrar el texto, selecciona la columna A y, a continuación, cambia el color de fuente."]
[null,"Para obtener más información sobre las tablas, presiona las teclas MAYÚS y F10 dentro de una tabla, selecciona la opción TABLA y después TEXTO ALTERNATIVO."]

{"sheet":"Gastos","index":1,"n_rows":32,"n_cols":8,"rows_kept":32,"merged":[[0,1,0,5],[2,1,3,1]]}
["Escribe los gastos estimado y real de cada categoría en las tablas correspondientes de la hoja de cálculo y el nombre del evento en la celda D1 para personalizar el título de esta y otras hojas de cálculo. El subtítulo de esta hoja de cálculo se muestra en la celda H1. Encontrarás instrucciones útiles sobre cómo usar esta hoja de cálculo en las celdas de esta columna. La siguiente instrucción se encuentra en la celda A3.","Presupuesto del evento para nombre del evento",{"$nulls":5},"GASTOS"]
[]
["La etiqueta Total de gastos está en la celda de la derecha, la etiqueta Estimado en la celda G3 y Real en H3.","GASTOS TOTALES",{"$nulls":4},"Estimado","Real"]
["El Total de gastos estimado en la celda G4 y el Total de gastos reales en H4 se calcula automáticamente. La siguiente instrucción se encuentra en la celda A6.",{"$nulls":5},{"$f":"SUM(C11,C19,C25,C32,G11,G19,G24)","v":{"v":882,"d":"$882.00"}},{"$f":"SUM(D11,D19,D25,D32,H11,H19,H24)","v":{"v":333,"d":"$333.00"}}]
[]
["Escribe los gastos del sitio en la tabla que comienza en la celda de la derecha y los Gastos De Refrescos en la tabla que comienza en la celda F6. La siguiente instrucción se encuentra en la celda A13.","Sitio","Estimado","Real",null,"Aperitivos","Estimado","Real"]
[null,"Gastos de sala y vestíbulo",{"v":500,"d":"$500.00"},null,null,"Comida"]
[null,"Personal del sitio",{"$nulls":3},"Bebidas",{"v":20,"d":"$20.00"}]
[null,"Equipo",{"$nulls":3},"Mantelería",null,{"v":20,"d":"$20.00"}]
[null,"Mesas y sillas",{"$nulls":3},"Personal y compensaciones"]
[null,"Total",{"$f":"SUBTOTAL(109,GastosDelSitio[Estimado])","v":{"v":500,"d":"$500.00"}},{"$f":"SUBTOTAL(109,GastosDelSitio[Real])","v":{"v":0,"d":"$0.00"}},null,"Total",{"$f":"SUBTOTAL(109,GastosDeRefrescos[Estimado])","v":{"v":20,"d":"$20.00"}},{"$f":"SUBTOTAL(109,GastosDeRefrescos[Real])","v":{"v":20,"d":"$20.00"}}]
[]
["Escribe los Gastos De Decoración en la tabla que comienza en la celda de la derecha y los gastos de programa en la tabla que comienza en la celda F13. La siguiente instrucción se encuentra en la celda A21.","Decoración","Estimado","Real",null,"Programa","Estimado","Real"]
[null,"Flores",{"v":200,"d":"$200.00"},{"v":300,"d":"$300.00"},null,"Actores"]
[null,"Velas",{"$nulls":3},"Oradores",{"v":30,"d":"$30.00"}]
[null,"Iluminación",{"$nulls":3},"Viajes"]
[null,"Globos",{"$nulls":3},"Hotel"]
[null,"Suministros de papel",{"$nulls":3},"Otros"]
[null,"Total",{"$f":"SUBTOTAL(109,GastosDeDecoración[Estimado])","v":{"v":200,"d":"$200.00"}},{"$f":"SUBTOTAL(109,GastosDeDecoración[Real])","v":{"v":300,"d":"$300.00"}},null,"Total",{"$f":"SUBTOTAL(109,GastosDePrograma[Estimado])","v":{"v":30,"d":"$30.00"}},{"$f":"SUBTOTAL(109,GastosDePrograma[Real])","v":{"v":0,"d":"$0.00"}}]
[]
["Escribe los gastos de publicidad en la tabla que comienza en la celda de la derecha y los gastos de premios en la tabla que comienza en la celda F21. La siguiente instrucción se muestra en la celda A27.","Publicidad","Estimado","Real",null,"Premios","Estimado","Real"]
[null,"Trabajo de gráficos",{"$nulls":3},"Cintas, placas o trofeos"]
[null,"Fotocopias e impresiones",{"v":20,"d":"$20.00"},null,null,"Regalos",{"v":100,"d":"$100.00"}]
[null,"Gastos de envío",{"$nulls":3},"Total",{"$f":"SUBTOTAL(109,GastosDePremios[Estimado])","v":{"v":100,"d":"$100.00"}},{"$f":"SUBTOTAL(109,GastosDePremios[Real])","v":{"v":0,"d":"$0.00"}}]
[null,"Total",{"$f":"SUBTOTAL(109,GastosDePublicidad[Estimado])","v":{"v":20,"d":"$20.00"}},{"$f":"SUBTOTAL(109,GastosDePublicidad[Real])","v":{"v":0,"d":"$0.00"}}]
[]
["Escribe los gastos varios en la tabla que comienza en la celda de la derecha.","Varios","Estimado","Real"]
[null,"Teléfono",null,{"v":13,"d":"$13.00"}]
[null,"Transporte",{"v":12,"d":"$12.00"}]
[null,"Materiales de papelería"]
[null,"Servicios de fax"]
[null,"Total",{"$f":"SUBTOTAL(109,GastosVarios[Estimado])","v":{"v":12,"d":"$12.00"}},{"$f":"SUBTOTAL(109,GastosVarios[Real])","v":{"v":13,"d":"$13.00"}}]

{"sheet":"Ingresos","index":2,"n_rows":29,"n_cols":7,"rows_kept":29,"merged":[[0,1,0,4],[2,1,3,1]]}
["Escribe los ingresos estimado y real de cada categoría en las respectivas tablas de esta hoja de cálculo. El título de esta hoja de cálculo se actualiza automáticamente en la celda de la derecha. El subtítulo está en la celda G1. Encontrarás instrucciones útiles sobre cómo usar esta hoja de cálculo en las celdas de esta columna. La siguiente instrucción se encuentra en la celda A3.",{"$f":"Gastos!B1","v":"Presupuesto del evento para nombre del evento"},{"$nulls":4},"INGRESOS"]
[]
["La etiqueta ingresos Totales está en la celda de la derecha, la etiqueta Estimado en la celda F3 y Real en G3.","INGRESOS TOTALES",{"$nulls":3},"Estimado","Real"]
["El Total de ingresos estimados se calcula automáticamente en la celda F4 y el Total de ingresos reales en G4.",{"$nulls":4},{"$f":"SUM(Admisiones[[#Totals],[Ingresos estimados]],AnunciosDelPrograma[[#Totals],[Ingresos estimados]],ExpositoresYProveedores[[#Totals],[Ingresos estimados]],VentaDeProductos[[#Totals],[Ingresos estimados]])","v":{"v":1936,"d":"$1,936.00"}},{"$f":"SUM(Admisiones[[#Totals],[Ingresos reales]],AnunciosDelPrograma[[#Totals],[Ingresos reales]],ExpositoresYProveedores[[#Totals],[Ingresos reales]],VentaDeProductos[[#Totals],[Ingresos reales]])","v":{"v":1831,"d":"$1,831.00"}}]
["La etiqueta Entradas está en la celda de la derecha.","ENTRADAS"]
["Escribe el número de entradas estimado y real con tasas de vales en la tabla que empieza en la celda de la derecha. Los ingresos estimados y reales de entradas se calculan automáticamente. La siguiente instrucción se encuentra en la celda A11.","N.º estimado","N.º real","Tipo","Precio","Ingresos estimados","Ingresos reales"]
[null,300,278,"Adultos a",{"v":5,"d":"$5.00"},{"$f":"B7*E7","v":{"v":1500,"d":"$1,500.00"}},{"$f":"C7*E7","v":{"v":1390,"d":"$1,390.00"}}]
[null,197,195,"Niños a",{"v":2,"d":"$2.00"},{"$f":"B8*E8","v":{"v":394,"d":"$394.00"}},{"$f":"C8*E8","v":{"v":390,"d":"$390.00"}}]
[null,42,51,"Otros a",{"v":1,"d":"$1.00"},{"$f":"B9*E9","v":{"v":42,"d":"$42.00"}},{"$f":"C9*E9","v":{"v":51,"d":"$51.00"}}]
[null,"Total",{"$nulls":3},{"$f":"SUBTOTAL(109,Admisiones[Ingresos estimados])","v":{"v":1936,"d":"$1,936.00"}},{"$f":"SUBTOTAL(109,Admisiones[Ingresos reales])","v":{"v":1831,"d":"$1,831.00"}}]
["La etiqueta Anuncios del programa se encuentra en la celda de la derecha.","ANUNCIOS DEL PROGRAMA"]
["Escribe el número de anuncios en el programa estimados y reales en el programa y las tasas de anuncios en la tabla que empieza a partir de la celda de la derecha. Los ingresos de anuncios estimados y reales se calculan automáticamente. La siguiente instrucción se encuentra en la celda A17.","N.º estimado","N.º real","Tipo","Precio","Ingresos estimados","Ingresos reales"]
[null,12,null,"Portadas a",null,{"$f":"B13*E13","v":{"v":0,"d":"$0.00"}},{"$f":"C13*E13","v":{"v":0,"d":"$0.00"}}]
[null,null,158,"Medias páginas a",null,{"$f":"B14*E14","v":{"v":0,"d":"$0.00"}},{"$f":"C14*E14","v":{"v":0,"d":"$0.00"}}]
[null,4,null,"Cuartos de página a",null,{"$f":"B15*E15","v":{"v":0,"d":"$0.00"}},{"$f":"C15*E15","v":{"v":0,"d":"$0.00"}}]
[null,"Total",{"$nulls":3},{"$f":"SUBTOTAL(109,AnunciosDelPrograma[Ingresos estimados])","v":{"v":0,"d":"$0.00"}},{"$f":"SUBTOTAL(109,AnunciosDelPrograma[Ingresos reales])","v":{"v":0,"d":"$0.00"}}]
["La etiqueta Expositores o Proveedores se encuentra en la celda de la derecha.","EXPOSITORES Y PROVEEDORES"]
["Escribe el número de expositores estimado y real y las tasas de los puestos en la tabla que empieza en la celda de la derecha. Los ingresos estimados y reales se calculan automáticamente. La siguiente instrucción se encuentra en la celda A23.","N.º estimado","N.º real","Tipo","Precio","Ingresos estimados","Ingresos reales"]
[null,23,null,"Puestos grandes a",null,{"$f":"B19*E19","v":{"v":0,"d":"$0.00"}},{"$f":"C19*E19","v":{"v":0,"d":"$0.00"}}]
[null,354,null,"Puestos medianos a",null,{"$f":"B20*E20","v":{"v":0,"d":"$0.00"}},{"$f":"C20*E20","v":{"v":0,"d":"$0.00"}}]
[null,56,null,"Puestos pequeños a",null,{"$f":"B21*E21","v":{"v":0,"d":"$0.00"}},{"$f":"C21*E21","v":{"v":0,"d":"$0.00"}}]
[null,"Total",{"$nulls":3},{"$f":"SUBTOTAL(109,ExpositoresYProveedores[Ingresos estimados])","v":{"v":0,"d":"$0.00"}},{"$f":"SUBTOTAL(109,ExpositoresYProveedores[Ingresos reales])","v":{"v":0,"d":"$0.00"}}]
["La etiqueta Venta de productos se encuentra en la celda de la derecha.","VENTA DE PRODUCTOS"]
["Escribe el número de productos vendidos estimados y reales en el programa y las tasas de productos en la tabla que empieza a partir de la celda de la derecha. Los ingresos estimados y reales se calculan automáticamente.","N.º estimado","N.º real","Tipo","Precio","Ingresos estimados","Ingresos reales"]
[{"$nulls":3},"Productos a",null,{"$f":"B25*E25","v":{"v":0,"d":"$0.00"}},{"$f":"C25*E25","v":{"v":0,"d":"$0.00"}}]
[null,123,null,"Productos a",null,{"$f":"B26*E26","v":{"v":0,"d":"$0.00"}},{"$f":"C26*E26","v":{"v":0,"d":"$0.00"}}]
[{"$nulls":3},"Productos a",null,{"$f":"B27*E27","v":{"v":0,"d":"$0.00"}},{"$f":"C27*E27","v":{"v":0,"d":"$0.00"}}]
[null,13,null,"Productos a",null,{"$f":"B28*E28","v":{"v":0,"d":"$0.00"}},{"$f":"C28*E28","v":{"v":0,"d":"$0.00"}}]
[null,"Total",{"$nulls":3},{"$f":"SUBTOTAL(109,VentaDeProductos[Ingresos estimados])","v":{"v":0,"d":"$0.00"}},{"$f":"SUBTOTAL(109,VentaDeProductos[Ingresos reales])","v":{"v":0,"d":"$0.00"}}]

{"sheet":"Resumen de pérdidas y ganancias","index":3,"n_rows":8,"n_cols":7,"rows_kept":8,"merged":[[0,1,0,4],[2,4,11,6]]}
["El Resumen de beneficios y pérdidas y el gráfico que muestra el Total de ingresos y gastos se actualizan automáticamente en esta hoja de cálculo. El título de esta hoja de cálculo se actualiza automáticamente en la celda de la derecha. El subtítulo está en la celdas G1 y G2. Encontrarás instrucciones útiles sobre cómo usar esta hoja de cálculo en las celdas de esta columna. La siguiente instrucción se encuentra en la celda A3.",{"$f":"Gastos!B1","v":"Presupuesto del evento para nombre del evento"},{"$nulls":4},"BENEFICIOS "]
[{"$nulls":6},"Resumen de pérdidas"]
["En la celda E3 hay un gráfico de barras que compara los gastos e ingresos estimados y los gastos e ingresos reales.",{"$nulls":3},"En esta celda está el gráfico de barras con una comparación entre los gastos e ingresos estimados y los gastos e ingresos reales."]
["La tabla de resumen que empieza por la celda de la derecha se actualiza automáticamente. La siguiente instrucción se encuentra en la celda A8."," Total","Estimado","Real"]
[null,"Ingresos totales",{"$f":"Ingresos!F4","v":{"v":1936,"d":"$1,936.00"}},{"$f":"Ingresos!G4","v":{"v":1831,"d":"$1,831.00"}}]
[null,"Gastos totales",{"$f":"Gastos!G4","v":{"v":882,"d":"$882.00"}},{"$f":"Gastos!H4","v":{"v":333,"d":"$333.00"}}]
[]
["La beneficio Total o pérdidas estimado se calcula automáticamente en la celda C8 y el Total de beneficios y pérdidas real en la celda D8.","Beneficio total\n(o pérdidas)",{"$f":"C5-C6","v":{"v":1054,"d":"$1,054.00"}},{"$f":"D5-D6","v":{"v":1498,"d":"$1,498.00"}}]